fUSD/lending_fUSD_20260517
["ID","MTS","AMOUNT","RATE_DAILY","PERIOD"]
[422439428,1778949039000,-500.0,0.00013698,2]
[422439423,1778949039000,-500.0,0.00013698,2]
[422439427,1778949039000,-500.0,0.00013698,2]
[422439426,1778949039000,-500.0,0.00013698,2]
[422439402,1778949039000,-212.0522951,0.00013698,2]
[422439410,1778949039000,-500.0,0.00013698,2]
[422439401,1778949039000,-500.0,0.00013698,2]
[422439373,1778949039000,-13964.49522054,0.00013168,2]
[422439398,1778949039000,-500.0,0.00013698,2]
[422439434,1778949039000,-500.0,0.00013698,2]
[422439370,1778949039000,-850.8,0.00012893,2]
[422439379,1778949039000,-487.97597055,0.00013599,2]
[422439376,1778949039000,-250.845761,0.00013424,2]
[422439378,1778949039000,-360.56781024,0.00013599,2]
[422439372,1778949039000,-433.0,0.00012938,2]
[422439371,1778949039000,-9999.99,0.00012893,2]
[422439374,1778949039000,-17633.31011682,0.00013168,2]
[422439377,1778949039000,-3292.0,0.00013534,2]
[422439375,1778949039000,-306.13,0.00013278,2]
[422439380,1778949039000,-500.0,0.00013698,2]
[422439381,1778949039000,-500.0,0.00013698,2]
[422439383,1778949039000,-500.0,0.00013698,2]
[422439382,1778949039000,-500.0,0.00013698,2]
[422439386,1778949039000,-500.0,0.00013698,2]
[422439387,1778949039000,-500.0,0.00013698,2]
[422439384,1778949039000,-500.0,0.00013698,2]
[422439385,1778949039000,-500.0,0.00013698,2]
[422439388,1778949039000,-500.0,0.00013698,2]
[422439389,1778949039000,-500.0,0.00013698,2]
[422439392,1778949039000,-500.0,0.00013698,2]
[422439391,1778949039000,-500.0,0.00013698,2]
[422439390,1778949039000,-500.0,0.00013698,2]
[422439393,1778949039000,-621.13564933,0.00013698,2]
[422439395,1778949039000,-500.0,0.00013698,2]
[422439396,1778949039000,-500.0,0.00013698,2]
[422439397,1778949039000,-500.0,0.00013698,2]
[422439400,1778949039000,-582.7820392,0.00013698,2]
[422439399,1778949039000,-500.0,0.00013698,2]
[422439394,1778949039000,-500.0,0.00013698,2]
[422439435,1778949039000,-500.0,0.00013698,2]
[422439486,1778949039000,-151.0,0.0001556,2]
[422439433,1778949039000,-500.0,0.00013698,2]
[422439466,1778949039000,-164.85598906,0.00015,2]
[422439469,1778949039000,-2832.39793651,0.00015,2]
[422439465,1778949039000,-601.50431683,0.0001497,2]
[422439472,1778949039000,-224.0,0.0001509,2]
[422439484,1778949039000,-151.0,0.0001556,2]
[422439474,1778949039000,-306.13,0.00015175,2]
[422439476,1778949039000,-13964.49522054,0.00015443,2]
[422439483,1778949039000,-500.0,0.0001556,2]
[422439475,1778949039000,-1051.34,0.00015204,2]
[422439473,1778949039000,-2000.0,0.00015132,2]
[422439477,1778949039000,-17633.31011682,0.00015443,2]
[422439478,1778949039000,-1252.0,0.00015545,2]
[422439481,1778949039000,-500.0,0.0001556,2]
[422439468,1778949039000,-2797.75145207,0.00015,2]
[422439480,1778949039000,-200.0,0.0001556,2]
[422439479,1778949039000,-150.0,0.00015548,2]
[422439494,1778949039000,-151.0,0.0001556,2]
[422439497,1778949039000,-151.0,0.0001556,2]
[422439487,1778949039000,-151.0,0.0001556,2]
[422439492,1778949039000,-151.0,0.0001556,2]
[422439489,1778949039000,-151.0,0.0001556,2]
[422439488,1778949039000,-151.0,0.0001556,2]
[422439485,1778949039000,-540.21980902,0.0001556,2]
[422439490,1778949039000,-151.0,0.0001556,2]
[422439496,1778949039000,-151.0,0.0001556,2]
[422439495,1778949039000,-151.0,0.0001556,2]
[422439491,1778949039000,-151.0,0.0001556,2]
[422439498,1778949039000,-151.0,0.0001556,2]
[422439482,1778949039000,-151.0,0.0001556,2]
[422439467,1778949039000,-5863.59398004,0.00015,2]
[422439493,1778949039000,-168.82441293,0.0001556,2]
[422439462,1778949039000,-17633.31011682,0.00014685,2]
[422439471,1778949039000,-1152.0,0.0001509,2]
[422439444,1778949039000,-250.000001,0.000138,2]
[422439436,1778949039000,-500.0,0.00013698,2]
[422439438,1778949039000,-200.0,0.00013699,2]
[422439437,1778949039000,-500.0,0.00013698,2]
[422439443,1778949039000,-942.2,0.000138,2]
[422439440,1778949039000,-823.0,0.00013723,2]
[422439439,1778949039000,-166.66,0.00013699,2]
[422439442,1778949039000,-150.0,0.00013728,2]
[422439441,1778949039000,-823.0,0.00013723,2]
[422439446,1778949039000,-2000.0,0.00013871,2]
[422439458,1778949039000,-166.66,0.00014384,2]
[422439456,1778949039000,-166.66,0.00014247,2]
[422439457,1778949039000,-197.81098472,0.00014326,2]
[422439445,1778949039000,-166.66,0.00013836,2]
[422439432,1778949039000,-500.0,0.00013698,2]
[422439450,1778949039000,-1051.34,0.00013937,2]
[422439447,1778949039000,-306.13,0.0001391,2]
[422439464,1778949039000,-172.81799297,0.000149,2]
[422439470,1778949039000,-900.0,0.00015068,2]
[422439463,1778949039000,-4609.0,0.00014887,2]
[422439461,1778949039000,-13964.49522054,0.00014685,2]
[422439459,1778949039000,-9999.99,0.00014504,2]
[422439460,1778949039000,-306.13,0.00014542,2]
[422439449,1778949039000,-17633.31011682,0.00013927,2]
[422439455,1778949039000,-736.0,0.00014188,2]
[422439448,1778949039000,-13964.49522054,0.00013927,2]
[422439453,1778949039000,-166.66,0.0001411,2]
[422439454,1778949039000,-2909.53,0.00014126,2]
[422439451,1778949039000,-166.66,0.00013973,2]
[422439452,1778949039000,-250.0,0.00014,2]
[422439531,1778949040000,-155.19,0.00016267,2]
[422439530,1778949040000,-155.19,0.00016221,2]
[422439533,1778949040000,-155.19,0.00016317,2]
[422439534,1778949040000,-6453.0,0.00016376,2]
[422439544,1778949040000,-150.0,0.00016718,2]
[422439540,1778949040000,-1613.0,0.00016594,2]
[422439536,1778949040000,-1288.7,0.00016438,2]
[422439538,1778949040000,-900.0,0.00016438,2]
[422439539,1778949040000,-306.13,0.00016439,2]
[422439545,1778949040000,-150.0,0.00016718,2]
[422439535,1778949040000,-1190.40117411,0.00016415,2]
[422439541,1778949040000,-200.0,0.00016656,2]
[422439547,1778949040000,-217.40567745,0.00016718,2]
[422439543,1778949040000,-156.61,0.00016712,2]
[422439537,1778949040000,-461.01707129,0.00016438,2]
[422439546,1778949040000,-150.0,0.00016718,2]
[422439549,1778949040000,-150.0,0.00016718,2]
[422439523,1778949040000,-158.04817434,0.000161,2]
[422439557,1778949040000,-150.0,0.00016764,2]
[422439551,1778949040000,-150.0,0.00016718,2]
[422439554,1778949040000,-150.0,0.00016718,2]
[422439550,1778949040000,-150.0,0.00016718,2]
[422439552,1778949040000,-150.13985587,0.00016718,2]
[422439548,1778949040000,-150.0,0.00016718,2]
[422439553,1778949040000,-150.0,0.00016718,2]
[422439556,1778949040000,-150.0,0.00016741,2]
[422439542,1778949040000,-2236.95670848,0.00016656,2]
[422439525,1778949040000,-2157.14243826,0.00016108,2]
[422439522,1778949040000,-300.0,0.00016,2]
[422439524,1778949040000,-200.0,0.00016108,2]
[422439555,1778949040000,-150.0,0.00016718,2]
[422439508,1778949040000,-151.0,0.0001556,2]
[422439510,1778949040000,-151.0,0.0001556,2]
[422439509,1778949040000,-151.0,0.0001556,2]
[422439499,1778949040000,-151.0,0.0001556,2]
[422439502,1778949040000,-151.0,0.0001556,2]
[422439500,1778949040000,-151.0,0.0001556,2]
[422439503,1778949040000,-151.0,0.0001556,2]
[422439507,1778949040000,-151.0,0.0001556,2]
[422439501,1778949040000,-151.0,0.0001556,2]
[422439504,1778949040000,-151.0,0.0001556,2]
[422439505,1778949040000,-151.0,0.0001556,2]
[422439506,1778949040000,-151.0,0.0001556,2]
[422439512,1778949040000,-151.0,0.0001556,2]
[422439513,1778949040000,-2080.17592889,0.0001556,2]
[422439511,1778949040000,-151.0,0.0001556,2]
[422439517,1778949040000,-547.0,0.00015562,2]
[422439518,1778949040000,-150.0,0.00015786,2]
[422439519,1778949040000,-306.13,0.00015807,2]
[422439516,1778949040000,-151.0,0.0001556,2]
[422439515,1778949040000,-151.0,0.0001556,2]
[422439520,1778949040000,-150.0,0.00015865,2]
[422439521,1778949040000,-158.04817434,0.00016,2]
[422439532,1778949040000,-155.19,0.00016271,2]
[422439528,1778949040000,-13964.49522054,0.00016201,2]
[422439526,1778949040000,-9999.99,0.00016116,2]
[422439527,1778949040000,-158.04817434,0.000162,2]
[422439529,1778949040000,-17633.31011682,0.00016201,2]
[422439514,1778949040000,-151.0,0.0001556,2]
[422439558,1778949040000,-528.36,0.00016767,2]
[422439560,1778949040000,-150.0,0.00016795,2]
[422439594,1778949040000,-306.13,0.00017071,2]
[422439590,1778949040000,-2129.0,0.00017032,2]
[422439595,1778949040000,-150.0,0.00017085,2]
[422439593,1778949040000,-150.0,0.00017062,2]
[422439601,1778949040000,-150.0,0.00017131,2]
[422439598,1778949040000,-150.0,0.00017108,2]
[422439602,1778949040000,-150.0,0.00017131,2]
[422439596,1778949040000,-150.0,0.00017105,2]
[422439605,1778949040000,-150.0,0.00017176,2]
[422439600,1778949040000,-150.0,0.00017131,2]
[422439597,1778949040000,-150.0,0.00017105,2]
[422439604,1778949040000,-150.0,0.00017154,2]
[422439603,1778949040000,-150.0,0.0001714,2]
[422439606,1778949040000,-150.0,0.00017182,2]
[422439619,1778949040000,-150.0,0.00017234,2]
[422439608,1778949040000,-150.0,0.00017199,2]
[422439621,1778949040000,-150.0,0.00017245,2]
[422439623,1778949040000,-150.0,0.00017249,2]
[422439613,1778949040000,-2319.72410669,0.00017204,2]
[422439615,1778949040000,-150.0,0.00017222,2]
[422439607,1778949040000,-150.0,0.00017182,2]
[422439610,1778949040000,-200.0,0.00017204,2]
[422439625,1778949040000,-150.0,0.0001726,2]
[422439609,1778949040000,-781.66,0.000172,2]
[422439627,1778949040000,-150.0,0.0001726,2]
[422439617,1778949040000,-150.0,0.00017224,2]
[422439561,1778949040000,-150.0,0.00016795,2]
[422439591,1778949040000,-150.0,0.00017039,2]
[422439588,1778949040000,-150.0,0.00017027,2]
[422439599,1778949040000,-150.0,0.00017116,2]
[422439587,1778949040000,-150.0,0.00017027,2]
[422439562,1778949040000,-150.0,0.00016802,2]
[422439586,1778949040000,-150.0,0.00017027,2]
[422439559,1778949040000,-150.0,0.00016787,2]
[422439569,1778949040000,-150.0,0.00016873,2]
[422439565,1778949040000,-150.0,0.00016832,2]
[422439566,1778949040000,-150.0,0.0001685,2]
[422439563,1778949040000,-150.0,0.0001681,2]
[422439564,1778949040000,-150.0,0.00016821,2]
[422439567,1778949040000,-150.0,0.00016855,2]
[422439570,1778949040000,-150.0,0.00016878,2]
[422439572,1778949040000,-150.0,0.00016901,2]
[422439573,1778949040000,-150.0,0.00016924,2]
[422439575,1778949040000,-150.0,0.00016924,2]
[422439574,1778949040000,-150.0,0.00016924,2]
[422439568,1778949040000,-150.0,0.00016873,2]
[422439589,1778949040000,-150.0,0.00017027,2]
[422439592,1778949040000,-150.0,0.00017056,2]
[422439571,1778949040000,-150.0,0.00016887,2]
[422439584,1778949040000,-150.0,0.00016993,2]
[422439585,1778949040000,-150.0,0.00017016,2]
[422439583,1778949040000,-150.0,0.00016983,2]
[422439576,1778949040000,-150.0,0.00016947,2]
[422439579,1778949040000,-13964.49522054,0.0001696,2]
[422439580,1778949040000,-17633.31011682,0.0001696,2]
[422439578,1778949040000,-150.0,0.0001695,2]
[422439582,1778949040000,-150.0,0.00016971,2]
[422439577,1778949040000,-150.0,0.0001695,2]
[422439581,1778949040000,-150.0,0.0001697,2]
[422439672,1778949041000,-150.0,0.00017647,2]
[422439671,1778949041000,-150.0,0.00017647,2]
[422439676,1778949041000,-150.0,0.00017704,2]
[422439674,1778949041000,-150.0,0.00017658,2]
[422439677,1778949041000,-13964.49522054,0.00017718,2]
[422439660,1778949041000,-150.0,0.00017562,2]
[422439665,1778949041000,-150.0,0.00017612,2]
[422439664,1778949041000,-150.0,0.00017589,2]
[422439668,1778949041000,-150.0,0.00017647,2]
[422439661,1778949041000,-150.0,0.00017566,2]
[422439667,1778949041000,-150.0,0.00017647,2]
[422439673,1778949041000,-150.0,0.00017647,2]
[422439666,1778949041000,-150.0,0.00017635,2]
[422439687,1778949041000,-200.0,0.00017752,2]
[422439669,1778949041000,-150.0,0.00017647,2]
[422439675,1778949041000,-150.0,0.00017681,2]
[422439678,1778949041000,-17633.31011682,0.00017718,2]
[422439681,1778949041000,-500.0,0.00017726,2]
[422439679,1778949041000,-150.0,0.00017724,2]
[422439682,1778949041000,-150.0,0.00017727,2]
[422439683,1778949041000,-150.0,0.00017731,2]
[422439680,1778949041000,-150.0,0.00017724,2]
[422439689,1778949041000,-150.0,0.00017773,2]
[422439690,1778949041000,-150.0,0.00017779,2]
[422439686,1778949041000,-150.0,0.0001775,2]
[422439684,1778949041000,-150.0,0.0001775,2]
[422439663,1778949041000,-150.0,0.00017569,2]
[422439670,1778949041000,-150.0,0.00017647,2]
[422439658,1778949041000,-150.0,0.00017543,2]
[422439629,1778949041000,-150.0,0.00017268,2]
[422439659,1778949041000,-150.0,0.00017543,2]
[422439685,1778949041000,-150.0,0.0001775,2]
[422439630,1778949041000,-150.0,0.00017291,2]
[422439638,1778949041000,-150.0,0.00017337,2]
[422439640,1778949041000,-150.0,0.0001736,2]
[422439641,1778949041000,-150.0,0.00017381,2]
[422439632,1778949041000,-150.0,0.00017314,2]
[422439631,1778949041000,-150.0,0.00017309,2]
[422439634,1778949041000,-150.0,0.00017337,2]
[422439637,1778949041000,-150.0,0.00017337,2]
[422439639,1778949041000,-150.0,0.00017337,2]
[422439636,1778949041000,-150.0,0.00017337,2]
[422439633,1778949041000,-150.0,0.00017337,2]
[422439642,1778949041000,-150.0,0.00017383,2]
[422439662,1778949041000,-150.0,0.00017569,2]
[422439646,1778949041000,-150.0,0.00017414,2]
[422439649,1778949041000,-150.0,0.00017452,2]
[422439647,1778949041000,-150.0,0.00017429,2]
[422439644,1778949041000,-150.0,0.00017406,2]
[422439643,1778949041000,-150.0,0.00017393,2]
[422439645,1778949041000,-150.0,0.00017414,2]
[422439651,1778949041000,-150.0,0.00017478,2]
[422439650,1778949041000,-150.0,0.00017475,2]
[422439652,1778949041000,-150.0,0.00017492,2]
[422439653,1778949041000,-150.0,0.00017492,2]
[422439655,1778949041000,-150.0,0.00017514,2]
[422439654,1778949041000,-150.0,0.00017498,2]
[422439656,1778949041000,-150.0,0.0001752,2]
[422439657,1778949041000,-150.0,0.00017543,2]
[422439648,1778949041000,-150.0,0.0001744,2]
[422439688,1778949041000,-2405.55389864,0.00017752,2]
[422439695,1778949041000,-500.0,0.00017808,2]
[422439702,1778949041000,-500.0,0.00017808,2]
[422439722,1778949041000,-500.0,0.00017808,2]
[422439723,1778949041000,-500.0,0.00017808,2]
[422439725,1778949041000,-500.0,0.00017808,2]
[422439727,1778949041000,-500.0,0.00017808,2]
[422439726,1778949041000,-500.0,0.00017808,2]
[422439731,1778949041000,-500.0,0.00017808,2]
[422439742,1778949041000,-500.0,0.00017808,2]
[422439732,1778949041000,-223.29617748,0.00017808,2]
[422439730,1778949041000,-500.0,0.00017808,2]
[422439733,1778949041000,-500.0,0.00017808,2]
[422439734,1778949041000,-500.0,0.00017808,2]
[422439736,1778949041000,-500.0,0.00017808,2]
[422439735,1778949041000,-500.0,0.00017808,2]
[422439721,1778949041000,-500.0,0.00017808,2]
[422439737,1778949041000,-500.0,0.00017808,2]
[422439740,1778949041000,-500.0,0.00017808,2]
[422439739,1778949041000,-500.0,0.00017808,2]
[422439758,1778949041000,-150.0,0.00017853,2]
[422439746,1778949041000,-500.0,0.00017808,2]
[422439743,1778949041000,-500.0,0.00017808,2]
[422439763,1778949041000,-150.0,0.00017879,2]
[422439750,1778949041000,-500.0,0.00017808,2]
[422439761,1778949041000,-150.0,0.00017864,2]
[422439754,1778949041000,-150.0,0.00017819,2]
[422439744,1778949041000,-500.0,0.00017808,2]
[422439756,1778949041000,-150.0,0.00017842,2]
[422439752,1778949041000,-150.0,0.00017815,2]
[422439692,1778949041000,-1208.61248979,0.00017798,2]
[422439738,1778949041000,-500.0,0.00017808,2]
[422439724,1778949041000,-500.0,0.00017808,2]
[422439741,1778949041000,-500.0,0.00017808,2]
[422439720,1778949041000,-500.0,0.00017808,2]
[422439719,1778949041000,-500.0,0.00017808,2]
[422439691,1778949041000,-150.0,0.00017796,2]
[422439703,1778949041000,-500.0,0.00017808,2]
[422439694,1778949041000,-150.0,0.00017801,2]
[422439748,1778949041000,-200.0,0.00017808,2]
[422439693,1778949041000,-150.0,0.00017801,2]
[422439697,1778949041000,-500.0,0.00017808,2]
[422439696,1778949041000,-500.0,0.00017808,2]
[422439698,1778949041000,-500.0,0.00017808,2]
[422439699,1778949041000,-500.0,0.00017808,2]
[422439700,1778949041000,-500.0,0.00017808,2]
[422439716,1778949041000,-500.0,0.00017808,2]
[422439705,1778949041000,-500.0,0.00017808,2]
[422439715,1778949041000,-500.0,0.00017808,2]
[422439701,1778949041000,-500.0,0.00017808,2]
[422439729,1778949041000,-500.0,0.00017808,2]
[422439717,1778949041000,-500.0,0.00017808,2]
[422439706,1778949041000,-500.0,0.00017808,2]
[422439728,1778949041000,-500.0,0.00017808,2]
[422439718,1778949041000,-500.0,0.00017808,2]
[422439714,1778949041000,-500.0,0.00017808,2]
[422439708,1778949041000,-500.0,0.00017808,2]
[422439713,1778949041000,-500.0,0.00017808,2]
[422439707,1778949041000,-500.0,0.00017808,2]
[422439712,1778949041000,-500.0,0.00017808,2]
[422439709,1778949041000,-500.0,0.00017808,2]
[422439704,1778949041000,-500.0,0.00017808,2]
[422439710,1778949041000,-500.0,0.00017808,2]
[422439711,1778949041000,-500.0,0.00017808,2]
[422439845,1778949042000,-150.0,0.00018238,2]
[422439864,1778949042000,-2494.55939289,0.000183,2]
[422439865,1778949042000,-150.0,0.000183,2]
[422439859,1778949042000,-150.0,0.00018277,2]
[422439849,1778949042000,-150.0,0.00018254,2]
[422439843,1778949042000,-150.0,0.00018231,2]
[422439841,1778949042000,-150.0,0.00018208,2]
[422439839,1778949042000,-150.0,0.00018188,2]
[422439836,1778949042000,-150.0,0.00018185,2]
[422439834,1778949042000,-150.0,0.00018177,2]
[422439837,1778949042000,-150.0,0.00018188,2]
[422439863,1778949042000,-200.0,0.000183,2]
[422439847,1778949042000,-803.0,0.00018247,2]
[422439866,1778949042000,-150.0,0.0001831,2]
[422439881,1778949042000,-1288.7,0.0001841,2]
[422439867,1778949042000,-169.19,0.00018319,2]
[422439851,1778949042000,-150.0,0.00018266,2]
[422439857,1778949042000,-150.0,0.00018266,2]
[422439855,1778949042000,-150.0,0.00018266,2]
[422439853,1778949042000,-150.0,0.00018266,2]
[422439869,1778949042000,-150.0,0.00018322,2]
[422439879,1778949042000,-150.0,0.00018392,2]
[422439874,1778949042000,-89528.68,0.00018356,2]
[422439871,1778949042000,-150.0,0.00018343,2]
[422439876,1778949042000,-150.0,0.00018369,2]
[422439872,1778949042000,-150.0,0.00018343,2]
[422439880,1778949042000,-150.0,0.00018406,2]
[422439873,1778949042000,-150.0,0.00018346,2]
[422439830,1778949042000,-150.0,0.00018163,2]
[422439861,1778949042000,-500.0,0.00018299,2]
[422439828,1778949042000,-150.0,0.00018163,2]
[422439765,1778949042000,-150.0,0.00017879,2]
[422439832,1778949042000,-150.0,0.00018163,2]
[422439868,1778949042000,-169.19,0.00018319,2]
[422439767,1778949042000,-150.0,0.00017887,2]
[422439771,1778949042000,-150.0,0.0001791,2]
[422439769,1778949042000,-150.0,0.000179,2]
[422439779,1778949042000,-150.0,0.00017956,2]
[422439775,1778949042000,-150.0,0.00017933,2]
[422439777,1778949042000,-150.0,0.00017956,2]
[422439773,1778949042000,-150.0,0.00017912,2]
[422439781,1778949042000,-150.0,0.00017956,2]
[422439783,1778949042000,-150.0,0.00017956,2]
[422439791,1778949042000,-150.0,0.00017984,2]
[422439787,1778949042000,-150.0,0.00017956,2]
[422439789,1778949042000,-150.0,0.00017979,2]
[422439785,1778949042000,-150.0,0.00017956,2]
[422439793,1778949042000,-350.0,0.00018,2]
[422439797,1778949042000,-3959.0,0.00018013,2]
[422439795,1778949042000,-150.0,0.00018002,2]
[422439806,1778949042000,-150.0,0.00018045,2]
[422439808,1778949042000,-150.0,0.00018048,2]
[422439801,1778949042000,-150.0,0.00018034,2]
[422439812,1778949042000,-150.0,0.00018069,2]
[422439810,1778949042000,-150.0,0.00018059,2]
[422439803,1778949042000,-150.0,0.00018034,2]
[422439816,1778949042000,-150.0,0.00018094,2]
[422439818,1778949042000,-150.0,0.00018111,2]
[422439814,1778949042000,-150.0,0.00018071,2]
[422439820,1778949042000,-150.0,0.00018111,2]
[422439822,1778949042000,-150.0,0.00018117,2]
[422439824,1778949042000,-150.0,0.0001814,2]
[422439826,1778949042000,-150.0,0.00018153,2]
[422439878,1778949042000,-150.0,0.00018369,2]
[422439799,1778949042000,-150.0,0.00018025,2]
[422439877,1778949042000,-150.0,0.00018369,2]
[422439919,1778949042000,-200.0,0.00018848,2]
[422439917,1778949042000,-289.516242,0.00018576,2]
[422439916,1778949042000,-289.516242,0.00018576,2]
[422439914,1778949042000,-289.516242,0.00018576,2]
[422439915,1778949042000,-289.516242,0.00018576,2]
[422439920,1778949042000,-2586.85809042,0.00018848,2]
[422439922,1778949042000,-150.0,0.00018917,2]
[422439921,1778949042000,-150.0,0.00018917,2]
[422439923,1778949042000,-150.0,0.00018917,2]
[422439927,1778949042000,-400.0,0.00018917,2]
[422439931,1778949042000,-400.0,0.00018917,2]
[422439925,1778949042000,-296.0,0.00018917,2]
[422439933,1778949042000,-400.0,0.00018917,2]
[422439945,1778949042000,-2000.0,0.00018919,2]
[422439926,1778949042000,-400.0,0.00018917,2]
[422439932,1778949042000,-400.0,0.00018917,2]
[422439930,1778949042000,-400.0,0.00018917,2]
[422439928,1778949042000,-400.0,0.00018917,2]
[422439929,1778949042000,-400.0,0.00018917,2]
[422439934,1778949042000,-400.0,0.00018917,2]
[422439936,1778949042000,-164.0,0.00018917,2]
[422439937,1778949042000,-300.0,0.00018918,2]
[422439940,1778949042000,-2000.0,0.00018919,2]
[422439946,1778949042000,-2000.0,0.00018919,2]
[422439939,1778949042000,-2000.0,0.00018919,2]
[422439941,1778949042000,-2000.0,0.00018919,2]
[422439943,1778949042000,-2000.0,0.00018919,2]
[422439942,1778949042000,-2000.0,0.00018919,2]
[422439870,1778949042000,-150.0,0.00018323,2]
[422439912,1778949042000,-1946.2396019,0.00018576,2]
[422439913,1778949042000,-43594.9917982,0.00018576,2]
[422439938,1778949042000,-2000.0,0.00018919,2]
[422439911,1778949042000,-539741.4136036,0.00018576,2]
[422439918,1778949042000,-418.0,0.00018669,2]
[422439875,1778949042000,-17481.8142291,0.00018364,2]
[422439882,1778949042000,-150.0,0.00018415,2]
[422439894,1778949042000,-150.0,0.00018498,2]
[422439886,1778949042000,-150.0,0.00018443,2]
[422439888,1778949042000,-150.0,0.00018472,2]
[422439887,1778949042000,-150.0,0.00018461,2]
[422439883,1778949042000,-150.0,0.00018421,2]
[422439889,1778949042000,-13964.49522054,0.00018476,2]
[422439884,1778949042000,-150.0,0.00018421,2]
[422439890,1778949042000,-17633.31011682,0.00018476,2]
[422439893,1778949042000,-150.0,0.00018498,2]
[422439885,1778949042000,-150.0,0.00018438,2]
[422439892,1778949042000,-150.0,0.00018491,2]
[422439896,1778949042000,-150.0,0.00018529,2]
[422439891,1778949042000,-150.0,0.00018484,2]
[422439895,1778949042000,-150.0,0.00018507,2]
[422439906,1778949042000,-150.0,0.00018575,2]
[422439909,1778949042000,-167523.8974559,0.00018576,2]
[422439908,1778949042000,-150.00000001,0.00018575,2]
[422439910,1778949042000,-3820.8869045,0.00018576,2]
[422439903,1778949042000,-150.90979649,0.00018575,2]
[422439900,1778949042000,-166.93728157,0.00018575,2]
[422439904,1778949042000,-150.0,0.00018575,2]
[422439907,1778949042000,-265.32239029,0.00018575,2]
[422439901,1778949042000,-205.77084112,0.00018575,2]
[422439902,1778949042000,-255.45324773,0.00018575,2]
[422439898,1778949042000,-300.0,0.00018575,2]
[422439899,1778949042000,-164.93242148,0.00018575,2]
[422439905,1778949042000,-151.38609086,0.00018575,2]
[422439897,1778949042000,-150.0,0.00018552,2]
[422439982,1778949043000,-2000.0,0.00018921,2]
[422439986,1778949043000,-2000.0,0.00018921,2]
[422439988,1778949043000,-279.0,0.00018922,2]
[422439991,1778949043000,-178.88433148,0.00019,2]
[422439992,1778949043000,-340.80268506,0.00019089,2]
[422439989,1778949043000,-150.0,0.00018922,2]
[422439987,1778949043000,-2000.0,0.00018921,2]
[422439997,1778949043000,-261.82652302,0.00019178,2]
[422439976,1778949043000,-2000.0,0.00018921,2]
[422439990,1778949043000,-215.0,0.00018922,2]
[422440005,1778949043000,-1629.27967864,0.000193,2]
[422439996,1778949043000,-250.0,0.00019178,2]
[422439994,1778949043000,-250.0,0.00019178,2]
[422439993,1778949043000,-300.0,0.00019177,2]
[422439999,1778949043000,-184.204154,0.00019178,2]
[422440009,1778949043000,-2682.57183977,0.00019396,2]
[422440002,1778949043000,-184.204154,0.00019178,2]
[422440008,1778949043000,-200.0,0.00019396,2]
[422439998,1778949043000,-3000.0,0.00019178,2]
[422439977,1778949043000,-2000.0,0.00018921,2]
[422440004,1778949043000,-208.67333663,0.000193,2]